[Event "*** SCC Grand Prix: Titled Tuesday Blitz"]
[Site "Chess.com"]
[Date "2020.06.09"]
[Round "2"]
[White "NIGWAPO"]
[Black "AtabayevSaparmyrat"]
[Result "0-1"]
[WhiteElo "2549"]
[BlackElo "2796"]
[TimeControl "180+1"]
[EndTime "9:21:23 PDT"]
[Termination "AtabayevSaparmyrat won on time"]

1. g3 {[%clk 0:03:00.9]} 1... e5 {[%clk 0:02:59]} 2. Bg2 {[%clk 0:03:00.9]} 2...
d5 {[%clk 0:02:59.1]} 3. d3 {[%clk 0:02:59.5]} 3... Nf6 {[%clk 0:02:59.4]} 4.
Bg5 {[%clk 0:02:58.4]} 4... Be6 {[%clk 0:02:59.1]} 5. c4 {[%clk 0:02:58.3]} 5...
c6 {[%clk 0:02:52.4]} 6. cxd5 {[%clk 0:02:58.3]} 6... Bxd5 {[%clk 0:02:51.6]} 7.
Nf3 {[%clk 0:02:56.3]} 7... Nbd7 {[%clk 0:02:50]} 8. Nc3 {[%clk 0:02:56.3]} 8...
Be6 {[%clk 0:02:48.8]} 9. O-O {[%clk 0:02:55.1]} 9... Be7 {[%clk 0:02:48.3]} 10.
a3 {[%clk 0:02:54.7]} 10... O-O {[%clk 0:02:48]} 11. b4 {[%clk 0:02:53.9]} 11...
h6 {[%clk 0:02:47.2]} 12. Bd2 {[%clk 0:02:49.5]} 12... Nd5 {[%clk 0:02:45]} 13.
Qc2 {[%clk 0:02:46.5]} 13... Rc8 {[%clk 0:02:26.9]} 14. e4 {[%clk 0:02:43.7]}
14... Nc7 {[%clk 0:02:20.3]} 15. d4 {[%clk 0:02:41.5]} 15... exd4 {[%clk
0:02:08.8]} 16. Nxd4 {[%clk 0:02:41.1]} 16... Bf6 {[%clk 0:02:06.1]} 17. Be3
{[%clk 0:02:39.1]} 17... Qe7 {[%clk 0:02:01.3]} 18. Rad1 {[%clk 0:02:37.8]}
18... Ne5 {[%clk 0:01:49.6]} 19. f4 {[%clk 0:02:28.9]} 19... Nc4 {[%clk
0:01:48.7]} 20. Bc1 {[%clk 0:02:28.3]} 20... Bg4 {[%clk 0:01:39.9]} 21. e5
{[%clk 0:02:10.7]} 21... Bxd1 {[%clk 0:01:38]} 22. Rxd1 {[%clk 0:02:10.8]} 22...
Nxe5 {[%clk 0:01:36.2]} 23. fxe5 {[%clk 0:02:07.5]} 23... Bxe5 {[%clk
0:01:37.1]} 24. Nf5 {[%clk 0:02:03.3]} 24... Qf6 {[%clk 0:01:33.6]} 25. Rf1
{[%clk 0:01:59.5]} 25... Bxc3 {[%clk 0:01:04.3]} 26. Nxh6+ {[%clk 0:01:58.9]}
26... gxh6 {[%clk 0:00:55.9]} 27. Rxf6 {[%clk 0:01:58.6]} 27... Bxf6 {[%clk
0:00:56.8]} 28. Qf5 {[%clk 0:01:58.5]} 28... Bg7 {[%clk 0:00:53.6]} 29. Be4
{[%clk 0:01:55]} 29... Rfe8 {[%clk 0:00:46.3]} 30. Bf4 {[%clk 0:01:51.5]} 30...
Ne6 {[%clk 0:00:44.2]} 31. Qh7+ {[%clk 0:01:48.4]} 31... Kf8 {[%clk 0:00:44.6]}
32. Bd6+ {[%clk 0:01:48.9]} 32... Re7 {[%clk 0:00:43.2]} 33. Bf5 {[%clk
0:01:48.1]} 33... Bd4+ {[%clk 0:00:38.7]} 34. Kg2 {[%clk 0:01:47.3]} 34... Rd8
{[%clk 0:00:39.3]} 35. Qxh6+ {[%clk 0:01:44.7]} 35... Bg7 {[%clk 0:00:39.6]} 36.
Bxe7+ {[%clk 0:01:43.8]} 36... Kxe7 {[%clk 0:00:40.5]} 37. Qe3 {[%clk
0:01:41.4]} 37... Bd4 {[%clk 0:00:39.1]} 38. Qe4 {[%clk 0:01:39.3]} 38... Bf6
{[%clk 0:00:33.9]} 39. Bxe6 {[%clk 0:01:35.9]} 39... Rd2+ {[%clk 0:00:31.9]} 40.
Kf3 {[%clk 0:01:33.8]} 40... fxe6 {[%clk 0:00:32.8]} 41. Qh7+ {[%clk 0:01:33.7]}
41... Kd6 {[%clk 0:00:33.3]} 42. Qxb7 {[%clk 0:01:33.9]} 42... Rd3+ {[%clk
0:00:33]} 43. Kg4 {[%clk 0:01:32.7]} 43... Rxa3 {[%clk 0:00:33.9]} 44. b5 {[%clk
0:01:23.8]} 44... cxb5 {[%clk 0:00:26.5]} 45. Qxb5 {[%clk 0:01:23.4]} 45... a5
{[%clk 0:00:25.1]} 46. Qb6+ {[%clk 0:01:06.3]} 46... Kd5 {[%clk 0:00:24.8]} 47.
Qb7+ {[%clk 0:01:06.4]} 47... Kd6 {[%clk 0:00:23.1]} 48. Kh5 {[%clk 0:01:02.3]}
48... Ra1 {[%clk 0:00:18]} 49. Kg6 {[%clk 0:01:02.1]} 49... Bd4 {[%clk
0:00:13.8]} 50. Qa6+ {[%clk 0:01:01.2]} 50... Kd5 {[%clk 0:00:13.5]} 51. Qb5+
{[%clk 0:00:59.3]} 51... Ke4 {[%clk 0:00:13.5]} 52. h4 {[%clk 0:00:51.2]} 52...
e5 {[%clk 0:00:13.4]} 53. h5 {[%clk 0:00:50.8]} 53... a4 {[%clk 0:00:09.9]} 54.
h6 {[%clk 0:00:50.8]} 54... Rg1 {[%clk 0:00:08.9]} 55. Qc6+ {[%clk 0:00:43.2]}
55... Kd3 {[%clk 0:00:09]} 56. Qf3+ {[%clk 0:00:41.9]} 56... Be3 {[%clk
0:00:08.5]} 57. h7 {[%clk 0:00:38.7]} 57... e4 {[%clk 0:00:09.4]} 58. Qg4 {[%clk
0:00:38.5]} 58... Bd4 {[%clk 0:00:08.7]} 59. Kf5 {[%clk 0:00:35.1]} 59... e3
{[%clk 0:00:07.5]} 60. Qe4+ {[%clk 0:00:33.6]} 60... Kc3 {[%clk 0:00:07.7]} 61.
Qc6+ {[%clk 0:00:33.6]} 61... Kd3 {[%clk 0:00:07.4]} 62. Qb5+ {[%clk 0:00:33.2]}
62... Kc3 {[%clk 0:00:06.5]} 63. Ke4 {[%clk 0:00:33.2]} 63... Rd1 {[%clk
0:00:04.3]} 64. Qc6+ {[%clk 0:00:25.8]} 64... Kb2 {[%clk 0:00:03.2]} 65. Qxa4
{[%clk 0:00:25.5]} 65... Rd2 {[%clk 0:00:01.4]} 66. Qb5+ {[%clk 0:00:23.1]}
66... Kc3 {[%clk 0:00:01.8]} 67. Qc6+ {[%clk 0:00:22.5]} 67... Kb2 {[%clk
0:00:02.7]} 68. Qb5+ {[%clk 0:00:22]} 68... Kc2 {[%clk 0:00:03.3]} 69. Qc4+
{[%clk 0:00:21.7]} 69... Kb2 {[%clk 0:00:03.6]} 70. Qf1 {[%clk 0:00:18]} 70...
e2 {[%clk 0:00:03.2]} 71. Qe1 {[%clk 0:00:17.7]} 71... Kc2 {[%clk 0:00:04.1]}
72. g4 {[%clk 0:00:15.6]} 72... Bc3 {[%clk 0:00:05]} 73. Qf2 {[%clk 0:00:10.9]}
73... Rd4+ {[%clk 0:00:05.2]} 74. Kf5 {[%clk 0:00:06.8]} 74... Rd2 {[%clk
0:00:05.7]} 75. h8=Q {[%clk 0:00:03]} 75... Bxh8 {[%clk 0:00:05]} 76. Qc5+
{[%clk 0:00:03.6]} 76... Bc3 {[%clk 0:00:05.4]} 77. Qf2 {[%clk 0:00:03.8]} 77...
Kd1 {[%clk 0:00:04.8]} 78. Qf3 {[%clk 0:00:03.5]} 78... Bd4 {[%clk 0:00:05.2]}
79. g5 {[%clk 0:00:03.4]} 79... Kc1 {[%clk 0:00:05.5]} 80. Qc6+ {[%clk
0:00:02.3]} 80... Kd1 {[%clk 0:00:05.3]} 81. Qa4+ {[%clk 0:00:02.4]} 81... Rc2
{[%clk 0:00:05.4]} 82. g6 {[%clk 0:00:02.7]} 82... Kc1 {[%clk 0:00:06]} 83. Qa3+
{[%clk 0:00:02.2]} 83... Bb2 {[%clk 0:00:06]} 84. Qe3+ {[%clk 0:00:02.2]} 84...
Rd2 {[%clk 0:00:06.6]} 0-1

[Event "*** SCC Grand Prix: Titled Tuesday Blitz"]
[Site "Chess.com"]
[Date "2020.06.09"]
[Round "3"]
[White "Synctel"]
[Black "SargissyanSargis"]
[Result "0-1"]
[WhiteElo "1910"]
[BlackElo "2303"]
[TimeControl "180+1"]
[EndTime "9:24:05 PDT"]
[Termination "SargissyanSargis won by resignation"]

1. e4 {[%clk 0:03:00.9]} 1... e5 {[%clk 0:02:58.5]} 2. Nf3 {[%clk 0:02:45.6]}
2... Nc6 {[%clk 0:02:57]} 3. Bc4 {[%clk 0:02:45.1]} 3... Bc5 {[%clk 0:02:55.9]}
4. c3 {[%clk 0:02:38.8]} 4... Nf6 {[%clk 0:02:55.8]} 5. d4 {[%clk 0:02:31.1]}
5... exd4 {[%clk 0:02:55.4]} 6. cxd4 {[%clk 0:02:32]} 6... Bb4+ {[%clk 0:02:55]}
7. Bd2 {[%clk 0:02:31.6]} 7... Nxe4 {[%clk 0:02:49.3]} 8. Bxb4 {[%clk
0:02:21.4]} 8... Nxb4 {[%clk 0:02:48.4]} 9. Bxf7+ {[%clk 0:02:00.1]} 9... Kxf7
{[%clk 0:02:47.7]} 10. Qb3+ {[%clk 0:02:00.3]} 10... d5 {[%clk 0:02:44.7]} 11.
Ne5+ {[%clk 0:01:51.7]} 11... Ke6 {[%clk 0:02:27.9]} 12. Qxb4 {[%clk 0:01:50.7]}
12... Qf8 {[%clk 0:02:25.3]} 13. O-O {[%clk 0:01:50.2]} 13... Qxb4 {[%clk
0:02:24.1]} 0-1

[Event "*** SCC Grand Prix: Titled Tuesday Blitz"]
[Site "Chess.com"]
[Date "2020.06.09"]
[Round "3"]
[White "DonBroca"]
[Black "frankshar"]
[Result "0-1"]
[WhiteElo "2181"]
[BlackElo "2378"]
[TimeControl "180+1"]
[EndTime "9:25:03 PDT"]
[Termination "frankshar won by resignation"]

1. e4 {[%clk 0:03:00.9]} 1... c5 {[%clk 0:02:59.4]} 2. Nf3 {[%clk 0:02:59.8]}
2... e6 {[%clk 0:02:59.3]} 3. d4 {[%clk 0:03:00.1]} 3... cxd4 {[%clk 0:03:00.2]}
4. Nxd4 {[%clk 0:03:00.2]} 4... Nf6 {[%clk 0:03:00.1]} 5. Nc3 {[%clk 0:02:59]}
5... d6 {[%clk 0:02:59.7]} 6. g3 {[%clk 0:02:58.7]} 6... Be7 {[%clk 0:02:58.9]}
7. Bg2 {[%clk 0:02:59.1]} 7... O-O {[%clk 0:02:58.6]} 8. O-O {[%clk 0:02:59.5]}
8... Nc6 {[%clk 0:02:58.5]} 9. h3 {[%clk 0:02:58.6]} 9... a6 {[%clk 0:02:49.8]}
10. Be3 {[%clk 0:02:55.3]} 10... Qc7 {[%clk 0:02:48.8]} 11. Qd2 {[%clk
0:02:54.6]} 11... Bd7 {[%clk 0:02:28.1]} 12. Rad1 {[%clk 0:02:52.6]} 12... Rfd8
{[%clk 0:02:22.4]} 13. Rfe1 {[%clk 0:02:51.6]} 13... Rac8 {[%clk 0:02:21.2]} 14.
Kh1 {[%clk 0:02:47.5]} 14... Nxd4 {[%clk 0:02:18.1]} 15. Bxd4 {[%clk 0:02:46.4]}
15... Bc6 {[%clk 0:02:17.8]} 16. Qe3 {[%clk 0:02:34.5]} 16... Nd7 {[%clk
0:02:11.4]} 17. f4 {[%clk 0:02:26.5]} 17... e5 {[%clk 0:02:05.5]} 18. Ba7 {[%clk
0:01:48.1]} 18... b6 {[%clk 0:02:00.9]} 19. fxe5 {[%clk 0:01:47.4]} 19... dxe5
{[%clk 0:01:54.6]} 20. Nd5 {[%clk 0:01:45.2]} 20... Bxd5 {[%clk 0:01:51.8]} 21.
exd5 {[%clk 0:01:46.1]} 21... Qxa7 {[%clk 0:01:50.6]} 22. d6 {[%clk 0:01:47]}
22... Bf6 {[%clk 0:01:49.4]} 0-1

[Event "*** SCC Grand Prix: Titled Tuesday Blitz"]
[Site "Chess.com"]
[Date "2020.06.09"]
[Round "3"]
[White "ftorodent"]
[Black "Andreikka"]
[Result "1/2-1/2"]
[WhiteElo "2666"]
[BlackElo "2901"]
[TimeControl "180+1"]
[EndTime "9:25:15 PDT"]
[Termination "Game drawn by repetition"]

1. d4 {[%clk 0:03:00.9]} 1... Nf6 {[%clk 0:02:59.2]} 2. c4 {[%clk 0:03:00.8]}
2... e6 {[%clk 0:02:57.9]} 3. Nf3 {[%clk 0:03:00.7]} 3... d5 {[%clk 0:02:58.2]}
4. Nc3 {[%clk 0:03:00.1]} 4... Be7 {[%clk 0:02:57.9]} 5. Bg5 {[%clk 0:02:56.4]}
5... O-O {[%clk 0:02:56.2]} 6. e3 {[%clk 0:02:56.3]} 6... h6 {[%clk 0:02:56.8]}
7. Bh4 {[%clk 0:02:55.9]} 7... Nbd7 {[%clk 0:02:55.9]} 8. cxd5 {[%clk
0:02:48.5]} 8... Nxd5 {[%clk 0:02:52.6]} 9. Bxe7 {[%clk 0:02:47.2]} 9... Qxe7
{[%clk 0:02:53.3]} 10. Rc1 {[%clk 0:02:44.6]} 10... c6 {[%clk 0:02:53.8]} 11.
Bc4 {[%clk 0:02:38.4]} 11... Nxc3 {[%clk 0:02:49.8]} 12. Rxc3 {[%clk 0:02:37.5]}
12... b6 {[%clk 0:02:48.8]} 13. O-O {[%clk 0:02:35.3]} 13... Bb7 {[%clk
0:02:49.2]} 14. Qe2 {[%clk 0:02:25.9]} 14... Rac8 {[%clk 0:02:48.2]} 15. Rfc1
{[%clk 0:02:24.4]} 15... c5 {[%clk 0:02:47.4]} 16. Ba6 {[%clk 0:02:24.1]} 16...
Bxa6 {[%clk 0:02:39.3]} 17. Qxa6 {[%clk 0:02:24]} 17... Rc7 {[%clk 0:02:36]} 18.
b4 {[%clk 0:02:06]} 18... Rfc8 {[%clk 0:02:36.2]} 19. bxc5 {[%clk 0:01:54.7]}
19... bxc5 {[%clk 0:02:36]} 20. Qa3 {[%clk 0:01:45.8]} 20... Qd8 {[%clk
0:02:32.6]} 21. Qa5 {[%clk 0:01:35.4]} 21... Qe7 {[%clk 0:02:10]} 22. Qa3 {[%clk
0:01:22.3]} 22... Qd8 {[%clk 0:02:08.2]} 23. Qa5 {[%clk 0:01:21.5]} 23... Qe7
{[%clk 0:02:07.9]} 24. Qa3 {[%clk 0:01:21.4]} 1/2-1/2

[Event "*** SCC Grand Prix: Titled Tuesday Blitz"]
[Site "Chess.com"]
[Date "2020.06.09"]
[Round "3"]
[White "Raja3401"]
[Black "chesstrainer2042"]
[Result "1-0"]
[WhiteElo "2815"]
[BlackElo "2465"]
[TimeControl "180+1"]
[EndTime "9:25:17 PDT"]
[Termination "Raja3401 won by resignation"]

1. e4 {[%clk 0:03:00.9]} 1... c5 {[%clk 0:02:50]} 2. Nf3 {[%clk 0:03:01]} 2...
Nc6 {[%clk 0:02:49.1]} 3. Bb5 {[%clk 0:03:00.8]} 3... g6 {[%clk 0:02:47.7]} 4.
O-O {[%clk 0:03:00.8]} 4... Bg7 {[%clk 0:02:47.4]} 5. Bxc6 {[%clk 0:03:01.5]}
5... dxc6 {[%clk 0:02:45.3]} 6. d3 {[%clk 0:03:01.7]} 6... Nf6 {[%clk
0:02:42.5]} 7. h3 {[%clk 0:03:01.9]} 7... Nd7 {[%clk 0:02:36.8]} 8. Nc3 {[%clk
0:03:02.1]} 8... e5 {[%clk 0:02:35.9]} 9. Be3 {[%clk 0:03:01.9]} 9... b6 {[%clk
0:02:30.7]} 10. Qd2 {[%clk 0:03:01.1]} 10... Qe7 {[%clk 0:02:28.3]} 11. Bh6
{[%clk 0:02:59.3]} 11... f6 {[%clk 0:02:28.3]} 12. a4 {[%clk 0:02:57.8]} 12...
a5 {[%clk 0:02:26.7]} 13. Nh2 {[%clk 0:02:55.9]} 13... Nf8 {[%clk 0:02:25.9]}
14. Bxg7 {[%clk 0:02:50.3]} 14... Qxg7 {[%clk 0:02:25.5]} 15. f4 {[%clk
0:02:51]} 15... Nd7 {[%clk 0:02:11.6]} 16. Ng4 {[%clk 0:02:44.3]} 16... exf4
{[%clk 0:02:11.5]} 17. Qxf4 {[%clk 0:02:43.1]} 17... O-O {[%clk 0:02:11.8]} 18.
Qd6 {[%clk 0:02:42]} 18... Bb7 {[%clk 0:02:10.1]} 19. Rf2 {[%clk 0:02:36.2]}
19... Rf7 {[%clk 0:01:59.9]} 20. Raf1 {[%clk 0:02:27.7]} 20... Raf8 {[%clk
0:01:59.3]} 21. e5 {[%clk 0:02:07.7]} 21... Nxe5 {[%clk 0:01:23.8]} 22. Nxf6+
{[%clk 0:02:06.2]} 1-0

[Event "*** SCC Grand Prix: Titled Tuesday Blitz"]
[Site "Chess.com"]
[Date "2020.06.09"]
[Round "3"]
[White "NidjatMamedov"]
[Black "ChessWarrior7197"]
[Result "0-1"]
[WhiteElo "2676"]
[BlackElo "2942"]
[TimeControl "180+1"]
[EndTime "9:25:29 PDT"]
[Termination "ChessWarrior7197 won by resignation"]

1. e4 {[%clk 0:03:00.9]} 1... c5 {[%clk 0:02:59.6]} 2. Nf3 {[%clk 0:03:00.5]}
2... d6 {[%clk 0:02:59.9]} 3. d4 {[%clk 0:03:01.1]} 3... cxd4 {[%clk 0:03:00.8]}
4. Nxd4 {[%clk 0:03:01.6]} 4... Nf6 {[%clk 0:03:01]} 5. Nc3 {[%clk 0:03:02.2]}
5... a6 {[%clk 0:03:01.3]} 6. f3 {[%clk 0:03:02.6]} 6... e5 {[%clk 0:03:00.9]}
7. Nb3 {[%clk 0:03:00.8]} 7... Be6 {[%clk 0:03:00.6]} 8. Be3 {[%clk 0:03:01.1]}
8... h5 {[%clk 0:03:00.5]} 9. Be2 {[%clk 0:02:59.8]} 9... Nbd7 {[%clk
0:02:58.4]} 10. O-O {[%clk 0:02:59.1]} 10... Be7 {[%clk 0:02:54.2]} 11. a4
{[%clk 0:02:58.2]} 11... O-O {[%clk 0:02:53]} 12. a5 {[%clk 0:02:58.2]} 12...
Rc8 {[%clk 0:02:50.1]} 13. Nd5 {[%clk 0:02:48.9]} 13... Nxd5 {[%clk 0:02:48.5]}
14. exd5 {[%clk 0:02:49.8]} 14... Bf5 {[%clk 0:02:48.9]} 15. c4 {[%clk
0:02:50.7]} 15... Bg6 {[%clk 0:02:48.3]} 16. Nd2 {[%clk 0:02:32.6]} 16... Bg5
{[%clk 0:02:45.8]} 17. Bf2 {[%clk 0:02:14]} 17... f5 {[%clk 0:02:34.2]} 18. b4
{[%clk 0:02:04.5]} 18... e4 {[%clk 0:02:33.8]} 19. fxe4 {[%clk 0:01:53.8]} 19...
fxe4 {[%clk 0:02:32.8]} 20. Nb3 {[%clk 0:01:54.4]} 20... Qe7 {[%clk 0:02:09]}
21. Nd4 {[%clk 0:01:52]} 21... Rxf2 {[%clk 0:02:04.6]} 22. Rxf2 {[%clk
0:01:42.9]} 22... Be3 {[%clk 0:02:03.3]} 23. Ne6 {[%clk 0:01:43.3]} 23... Qf6
{[%clk 0:02:00]} 0-1

[Event "*** SCC Grand Prix: Titled Tuesday Blitz"]
[Site "Chess.com"]
[Date "2020.06.09"]
[Round "3"]
[White "alexsergeyev"]
[Black "SoltaniciR"]
[Result "1-0"]
[WhiteElo "2352"]
[BlackElo "2485"]
[TimeControl "180+1"]
[EndTime "9:25:46 PDT"]
[Termination "alexsergeyev won by resignation"]

1. d4 {[%clk 0:03:00.9]} 1... Nf6 {[%clk 0:02:59.1]} 2. c4 {[%clk 0:03:00.5]}
2... Nc6 {[%clk 0:02:58.7]} 3. Nf3 {[%clk 0:02:58.8]} 3... e6 {[%clk 0:02:58.3]}
4. g3 {[%clk 0:02:53.3]} 4... Bb4+ {[%clk 0:02:58]} 5. Nbd2 {[%clk 0:02:52.2]}
5... d6 {[%clk 0:02:57.4]} 6. Bg2 {[%clk 0:02:51.7]} 6... O-O {[%clk 0:02:57]}
7. O-O {[%clk 0:02:51.6]} 7... Bxd2 {[%clk 0:02:56.9]} 8. Qxd2 {[%clk
0:02:51.2]} 8... a5 {[%clk 0:02:56.3]} 9. b3 {[%clk 0:02:50.8]} 9... Qe7 {[%clk
0:02:54.1]} 10. Bb2 {[%clk 0:02:50.6]} 10... e5 {[%clk 0:02:52.6]} 11. c5 {[%clk
0:02:40.6]} 11... e4 {[%clk 0:02:47.9]} 12. cxd6 {[%clk 0:02:39.8]} 12... cxd6
{[%clk 0:02:47.3]} 13. Ne1 {[%clk 0:02:21.4]} 13... d5 {[%clk 0:02:43]} 14. Nc2
{[%clk 0:02:20.5]} 14... Be6 {[%clk 0:02:32.6]} 15. Ba3 {[%clk 0:02:19.4]} 15...
Qd7 {[%clk 0:02:20.8]} 16. Bxf8 {[%clk 0:02:18]} 16... Rxf8 {[%clk 0:02:20.8]}
17. b4 {[%clk 0:02:14.8]} 17... Bh3 {[%clk 0:02:12.4]} 18. b5 {[%clk 0:02:03]}
18... Ne7 {[%clk 0:02:10.4]} 19. Qxa5 {[%clk 0:01:57.2]} 19... h5 {[%clk
0:02:10.3]} 20. Ne3 {[%clk 0:01:55]} 20... h4 {[%clk 0:02:08.8]} 21. Rac1 {[%clk
0:01:49.6]} 21... Bxg2 {[%clk 0:02:03.9]} 22. Kxg2 {[%clk 0:01:48.5]} 22... Ng4
{[%clk 0:01:52.8]} 23. Qc7 {[%clk 0:01:29.9]} 23... Nxe3+ {[%clk 0:01:48]} 24.
fxe3 {[%clk 0:01:29.7]} 24... Qe6 {[%clk 0:01:45.4]} 25. Qe5 {[%clk 0:01:26.5]}
1-0

[Event "*** SCC Grand Prix: Titled Tuesday Blitz"]
[Site "Chess.com"]
[Date "2020.06.09"]
[Round "3"]
[White "andriipalchuk"]
[Black "Aradej"]
[Result "1-0"]
[WhiteElo "2210"]
[BlackElo "2491"]
[TimeControl "180+1"]
[EndTime "9:25:53 PDT"]
[Termination "andriipalchuk won by resignation"]

1. e4 {[%clk 0:03:00.9]} 1... d6 {[%clk 0:02:59.6]} 2. d4 {[%clk 0:02:59.9]}
2... Nf6 {[%clk 0:03:00]} 3. Nc3 {[%clk 0:02:59.6]} 3... e5 {[%clk 0:03:00.4]}
4. Nf3 {[%clk 0:02:56.1]} 4... Nbd7 {[%clk 0:03:00.1]} 5. Bc4 {[%clk 0:02:54.7]}
5... Be7 {[%clk 0:02:59.9]} 6. O-O {[%clk 0:02:41.2]} 6... O-O {[%clk
0:02:59.4]} 7. Bg5 {[%clk 0:02:18.3]} 7... c6 {[%clk 0:02:55]} 8. dxe5 {[%clk
0:02:12.2]} 8... dxe5 {[%clk 0:02:54.3]} 9. a4 {[%clk 0:02:02]} 9... h6 {[%clk
0:02:53.2]} 10. Bh4 {[%clk 0:01:54.4]} 10... Re8 {[%clk 0:02:52.5]} 11. Qe2
{[%clk 0:01:48.6]} 11... Qc7 {[%clk 0:02:49]} 12. a5 {[%clk 0:01:39.1]} 12...
Nf8 {[%clk 0:02:47.3]} 13. Bg3 {[%clk 0:01:36.7]} 13... Ng6 {[%clk 0:02:45.4]}
14. Bb3 {[%clk 0:01:23.1]} 14... Nh5 {[%clk 0:02:37.4]} 15. Nxe5 {[%clk
0:01:15.6]} 15... Nxg3 {[%clk 0:02:31.5]} 16. Bxf7+ {[%clk 0:01:14.3]} 16... Kf8
{[%clk 0:02:21.6]} 17. fxg3 {[%clk 0:00:59.6]} 17... Nxe5 {[%clk 0:02:15.8]} 18.
Bxe8+ {[%clk 0:00:54.9]} 18... Kxe8 {[%clk 0:02:15.3]} 19. Qh5+ {[%clk
0:00:54.1]} 19... g6 {[%clk 0:02:09.3]} 20. Qxh6 {[%clk 0:00:53.4]} 20... Be6
{[%clk 0:02:09.7]} 21. Qh8+ {[%clk 0:00:49.8]} 21... Kd7 {[%clk 0:02:01.1]} 22.
Rad1+ {[%clk 0:00:49.2]} 1-0

[Event "*** SCC Grand Prix: Titled Tuesday Blitz"]
[Site "Chess.com"]
[Date "2020.06.09"]
[Round "3"]
[White "Benjoneliere44"]
[Black "Ariadna_Atreides"]
[Result "1-0"]
[WhiteElo "2476"]
[BlackElo "1961"]
[TimeControl "180+1"]
[EndTime "9:25:54 PDT"]
[Termination "Benjoneliere44 won by resignation"]

1. e4 {[%clk 0:03:00.9]} 1... c5 {[%clk 0:02:59.2]} 2. Nc3 {[%clk 0:02:38.8]}
2... Nc6 {[%clk 0:02:57.3]} 3. f4 {[%clk 0:02:38.3]} 3... d6 {[%clk 0:02:53.3]}
4. Nf3 {[%clk 0:02:38]} 4... g6 {[%clk 0:02:50.2]} 5. Bc4 {[%clk 0:02:37.6]}
5... Bg7 {[%clk 0:02:48.8]} 6. O-O {[%clk 0:02:38]} 6... e6 {[%clk 0:02:48.8]}
7. d3 {[%clk 0:02:37.7]} 7... Nge7 {[%clk 0:02:47.6]} 8. Qe1 {[%clk 0:02:38.1]}
8... O-O {[%clk 0:02:46.4]} 9. f5 {[%clk 0:02:38.6]} 9... exf5 {[%clk
0:02:37.5]} 10. Qh4 {[%clk 0:02:38.4]} 10... Nd4 {[%clk 0:02:31.6]} 11. Bg5
{[%clk 0:02:27.3]} 11... Re8 {[%clk 0:02:20.6]} 12. Nd5 {[%clk 0:02:23.3]} 12...
Ndc6 {[%clk 0:01:55.7]} 13. Nf6+ {[%clk 0:02:16.9]} 13... Bxf6 {[%clk
0:01:50.8]} 14. Bxf6 {[%clk 0:02:17.8]} 14... h5 {[%clk 0:01:49.5]} 15. Qg5
{[%clk 0:02:11.4]} 15... Kh7 {[%clk 0:01:19.1]} 16. Bxf7 {[%clk 0:02:09.2]}
16... Qd7 {[%clk 0:01:13.2]} 17. Nh4 {[%clk 0:02:01.6]} 17... Ne5 {[%clk
0:00:51.9]} 18. Bxe8 {[%clk 0:01:48.5]} 18... Qxe8 {[%clk 0:00:49.6]} 19. Bxe7
{[%clk 0:01:47.9]} 1-0

[Event "*** SCC Grand Prix: Titled Tuesday Blitz"]
[Site "Chess.com"]
[Date "2020.06.09"]
[Round "3"]
[White "Logman74"]
[Black "Roza_Idrisova"]
[Result "0-1"]
[WhiteElo "2357"]
[BlackElo "2188"]
[TimeControl "180+1"]
[EndTime "9:26:04 PDT"]
[Termination "Roza_Idrisova won by checkmate"]

1. e4 {[%clk 0:03:00.9]} 1... c6 {[%clk 0:02:59.5]} 2. d4 {[%clk 0:02:59.6]}
2... d5 {[%clk 0:02:59.5]} 3. exd5 {[%clk 0:02:59.4]} 3... cxd5 {[%clk
0:02:59.5]} 4. c4 {[%clk 0:02:59.2]} 4... Nf6 {[%clk 0:02:59.1]} 5. Nc3 {[%clk
0:02:58.9]} 5... Nc6 {[%clk 0:02:57.3]} 6. Nf3 {[%clk 0:02:58.1]} 6... Bg4
{[%clk 0:02:56.4]} 7. cxd5 {[%clk 0:02:56.9]} 7... Nxd5 {[%clk 0:02:55.5]} 8.
Qb3 {[%clk 0:02:56.3]} 8... Bxf3 {[%clk 0:02:54.9]} 9. gxf3 {[%clk 0:02:55.6]}
9... e6 {[%clk 0:02:46.8]} 10. Qxb7 {[%clk 0:02:52.6]} 10... Nxd4 {[%clk
0:02:46.6]} 11. Bb5+ {[%clk 0:02:50.5]} 11... Nxb5 {[%clk 0:02:45.6]} 12. Qc6+
{[%clk 0:02:50.1]} 12... Ke7 {[%clk 0:02:42.2]} 13. Qxb5 {[%clk 0:02:49.6]}
13... f6 {[%clk 0:02:39.6]} 14. Nxd5+ {[%clk 0:02:46.6]} 14... Qxd5 {[%clk
0:02:37.1]} 15. Qxd5 {[%clk 0:02:45.6]} 15... exd5 {[%clk 0:02:37.3]} 16. Be3
{[%clk 0:02:45.2]} 16... Ke6 {[%clk 0:02:37]} 17. O-O-O {[%clk 0:02:45]} 17...
Rc8+ {[%clk 0:02:35.5]} 18. Kb1 {[%clk 0:02:43.8]} 18... Bc5 {[%clk 0:02:30.9]}
19. Rhe1 {[%clk 0:02:39.8]} 19... Bxe3 {[%clk 0:02:25.2]} 20. Rxe3+ {[%clk
0:02:39.2]} 20... Kd6 {[%clk 0:02:23.4]} 21. Red3 {[%clk 0:02:37.7]} 21... Rc5
{[%clk 0:02:22.7]} 22. a4 {[%clk 0:02:31]} 22... Rb8 {[%clk 0:02:20.1]} 23. Ka2
{[%clk 0:02:29.6]} 23... a5 {[%clk 0:02:19.3]} 24. Ka3 {[%clk 0:02:25.3]} 24...
Rb4 {[%clk 0:02:18.2]} 25. b3 {[%clk 0:02:19.8]} 25... Rh4 {[%clk 0:02:16.9]}
26. Rg1 {[%clk 0:02:13]} 26... g6 {[%clk 0:02:16.1]} 27. Rg2 {[%clk 0:02:05.5]}
27... d4 {[%clk 0:01:59.6]} 28. b4 {[%clk 0:02:00]} 28... axb4+ {[%clk
0:01:57.7]} 29. Kxb4 {[%clk 0:01:59.4]} 29... Kd5 {[%clk 0:01:57.8]} 30. a5
{[%clk 0:01:58.8]} 30... Rc4+ {[%clk 0:01:55.7]} 31. Kb5 {[%clk 0:01:57.2]}
31... Rc2 {[%clk 0:01:50.1]} 32. a6 {[%clk 0:01:52.4]} 32... Rb2+ {[%clk
0:01:49.3]} 33. Ka5 {[%clk 0:01:48.9]} 33... Kc4 {[%clk 0:01:45.4]} 34. Rd1
{[%clk 0:01:36.5]} 34... Rh5+ {[%clk 0:01:44.4]} 35. Ka4 {[%clk 0:01:27.2]}
35... Ra2# {[%clk 0:01:43.7]} 0-1